fUST/lending_fUST_20241130
["ID","MTS","AMOUNT","RATE_DAILY","PERIOD"]
[343718266,1732911035844,-200.21170557,0.00027473,5]
[343718268,1732911035854,-502.26,0.0002749,10]
[343718270,1732911035863,-418.55,0.0002749,10]
[343718272,1732911035873,-500.0,0.00027499,2]
[343718274,1732911035883,-224.8174947,0.00027499,2]
[343718276,1732911035892,-500.0,0.00027499,2]
[343718278,1732911035901,-500.0,0.00027499,2]
[343718279,1732911035911,-274.1233187,0.00027499,2]
[343718280,1732911035920,-384.65122295,0.00027499,2]
[343718281,1732911035929,-2740.83401969,0.000275,2]
[343718282,1732911035940,-874.94668445,0.000275,2]
[343718283,1732911035950,-33845.18970644,0.000275,5]
[343718299,1732911039015,-78593.0817908,0.000275,5]
[343718300,1732911039464,-53714.83922722,0.000275,5]
[343718301,1732911039476,-50000.0,0.000275,5]
[343718302,1732911039488,-1947.74,0.000275,5]
[343718304,1732911040447,-348.79,0.0002749,10]
[343718305,1732911040457,-11889.514594,0.000275,5]
[343718306,1732911040468,-130371.91718625,0.000275,5]
[343718313,1732911043350,-4759.66414001,0.000275,5]
[343718316,1732911043629,-73617.83036368,0.000275,5]
[343718318,1732911043640,-115047.6066433,0.000275,5]
[343718335,1732911046411,-2077.895476,0.000275,5]
[343718387,1732911204079,167.2191,0.00013973,2]
[343718408,1732911871044,168.50775,0.00013973,2]
[343718412,1732911955700,303.67417242,0.0003013,120]
[343718417,1732912125805,7174.49693223,0.000109,2]
[343718418,1732912146208,-257.58826757,0.000219,2]
[343718419,1732912146350,-263.0,0.00022,2]
[343718420,1732912146372,-1504.25738748,0.0002201,16]
[343718421,1732912146394,-123.87728219,0.00022192,2]
[343718422,1732912156168,-139.12271781,0.00022192,2]
[343718423,1732912156189,-171.8049,0.00022483,2]
[343718424,1732912156210,-3127.1527621,0.00022575,2]
[343718425,1732912156231,-1914.3588178,0.00022585,2]
[343718426,1732912156253,-497.075299,0.00023011,2]
[343718427,1732912156275,-263.0,0.00023014,2]
[343718428,1732912156296,-203.948174,0.00023562,2]
[343718429,1732912156317,-2384.28383808,0.00024073,2]
[343718430,1732912156338,-265.0,0.00024164,2]
[343718431,1732912156360,-300.0,0.00024171,2]
[343718432,1732912156382,-300.0,0.00024171,2]
[343718433,1732912156403,-25482.0,0.00024171,2]
[343718434,1732912156424,-160.0,0.00024173,2]
[343718435,1732912156446,-501.2213572,0.00024173,2]
[343718436,1732912156467,-500.0,0.00024173,2]
[343718437,1732912156488,-452.77538759,0.00024173,2]
[343718438,1732912156512,-2780.02033277,0.00024188,2]
[343718439,1732912156534,-500.0,0.0002419,2]
[343718440,1732912156556,-500.0,0.0002419,2]
[343718441,1732912156583,-451.20765588,0.0002419,2]
[343718442,1732912156604,-230.88536939,0.0002419,2]
[343718443,1732912156627,-500.0,0.0002419,2]
[343718444,1732912156649,-704.21742939,0.00024191,2]
[343718445,1732912156670,-56.79761579,0.00024191,2]
[343718446,1732912167099,-1690.32144361,0.00024191,2]
[343718447,1732912167121,-7347.0848116,0.00024191,2]
[343718478,1732912232605,-300.0,0.0002419,2]
[343718479,1732912232615,-300.0,0.0002419,2]
[343718480,1732912232624,-10199.3194304,0.00024191,2]
[343718481,1732912232664,-7353.595758,0.00024191,2]
[343718482,1732912232673,-250.0,0.00024963,2]
[343718483,1732912232683,-2384.28383807,0.00024965,2]
[343718484,1732912232692,-469.47828626,0.00025,2]
[343718485,1732912232701,-58082.65264961,0.00025,2]
[343718486,1732912232710,-767.76,0.0002508,10]
[343718487,1732912232720,-162.7,0.0002508,10]
[343718488,1732912232730,-6178.28539448,0.0002509,2]
[343718489,1732912232742,-650.26151516,0.0002509,2]
[343718491,1732912232758,-468.41659351,0.0002509,2]
[343718493,1732912232770,-2156.49679097,0.0002509,2]
[343718539,1732912238683,-161.2452951,0.00024999,2]
[343718541,1732912238692,-843.9107049,0.0002509,2]
[343718652,1732912243681,-35731.4668907,0.0002509,2]
[343718653,1732912243691,-177.415,0.00025775,11]
[343718654,1732912243701,-263.0,0.00025775,2]
[343718655,1732912243711,-2384.28383807,0.00025858,2]
[343718656,1732912243720,-669.53464192,0.00026,10]
[343718657,1732912243730,-420.0,0.00026227,2]
[343718659,1732912243739,-420.0,0.00026609,2]
[343718660,1732912243748,-2384.28383807,0.0002675,2]
[343718662,1732912243758,-263.0,0.00027386,2]
[343718664,1732912243767,-500.0,0.00027397,2]
[343718667,1732912243776,-566.59717125,0.000274,2]
[343718668,1732912243785,-500.0,0.00027473,5]
[343718670,1732912243795,-500.0,0.00027473,5]
[343718672,1732912243804,-813.53,0.0002749,10]
[343718674,1732912243813,-1649.56545022,0.00027499,2]
[343718676,1732912243824,-1370.41700984,0.000275,2]
[343718678,1732912243835,-331496.80778258,0.000275,5]
[343718695,1732912526608,168.230478,0.00013973,2]
[343718708,1732913227132,-170.469338,0.00024775,2]
[343718709,1732913227153,-248.53765,0.00025124,2]
[343718710,1732913227174,-250.0,0.00025444,2]
[343718711,1732913227197,-168.560225,0.00025656,2]
[343718712,1732913227219,-300.0,0.0002584,2]
[343718713,1732913227239,-300.0,0.0002584,2]
[343718714,1732913227260,-161.0,0.0002584,2]
[343718715,1732913227281,-4484.48356424,0.00025841,2]
[343718716,1732913242109,-167.08481266,0.00025841,2]
[343718718,1732913250105,-181.2994817,0.00025841,2]
[343718749,1732913432840,-20.14438686,0.0002584,2]
[343718802,1732913434799,-279.85561314,0.0002584,2]
[343718803,1732913434809,-153.24438686,0.0002584,2]
[343718805,1732913438662,-146.75561314,0.0002584,2]
[343718806,1732913438671,-12289.18011736,0.00025841,2]
[343718807,1732913438717,-7777.95202404,0.00025841,2]
[343718808,1732913438727,-970.209712,0.00025849,2]
[343718809,1732913438737,-1000.5,0.00026,31]
[343718810,1732913438747,-177.415,0.00026575,13]
[343718811,1732913438758,-275.548861,0.00026658,2]
[343718812,1732913438767,-153.0,0.00026658,2]
[343718813,1732913438777,-153.0,0.00026658,2]
[343718814,1732913438786,-153.0,0.00026658,2]
[343718815,1732913438797,-153.0,0.00026658,2]
[343718816,1732913438807,-153.0,0.00026658,2]
[343718817,1732913438816,-153.0,0.00026658,2]
[343718818,1732913438826,-153.0,0.00026658,2]
[343718819,1732913438836,-153.0,0.00026658,2]
[343718820,1732913438846,-153.0,0.00026658,2]
[343718821,1732913438855,-153.0,0.00026658,2]
[343718822,1732913438865,-153.0,0.00026658,2]
[343718823,1732913438874,-153.0,0.00026658,2]
[343718824,1732913438883,-153.0,0.00026658,2]
[343718825,1732913438893,-153.0,0.00026658,2]
[343718826,1732913438903,-153.0,0.00026658,2]
[343718827,1732913438912,-153.0,0.00026658,2]
[343718828,1732913438921,-153.0,0.00026658,2]
[343718829,1732913438930,-153.0,0.00026658,2]
[343718830,1732913438940,-153.0,0.00026658,2]
[343718831,1732913438950,-153.0,0.00026658,2]
[343718832,1732913438963,-153.0,0.00026658,2]
[343718833,1732913438972,-153.0,0.000267,2]
[343718834,1732913438981,-153.0,0.000267,2]
[343718835,1732913438990,-5648.94342028,0.00027078,2]
[343718836,1732913439001,-500.0,0.00027309,2]
[343718837,1732913439011,-500.0,0.00027309,2]
[343718838,1732913439020,-500.0,0.00027309,2]
[343718839,1732913439030,-500.0,0.00027309,2]
[343718840,1732913439040,-2880.43098176,0.0002731,2]
[343718911,1732913443660,-2768.51243853,0.0002731,2]
[343718912,1732913443669,-548.21976959,0.0002731,2]
[343718913,1732913443678,-500.0,0.00027397,2]
[343718914,1732913443688,-1014.49280021,0.000274,2]
[343718915,1732913443698,-542.75185422,0.000274,2]
[343718916,1732913443707,-459.03943744,0.000274,2]
[343718917,1732913443717,-2230.7942755,0.000274,2]
[343718918,1732913443726,-379.08,0.0002749,10]
[343718919,1732913443736,-315.9,0.0002749,10]
[343718920,1732913443745,-263.25,0.0002749,10]
[343718921,1732913443754,-685.20850492,0.000275,2]
[343718922,1732913443764,-62556.21843288,0.000275,5]
[343718923,1732913443776,-6033.61927167,0.000275,5]
[343718924,1732913443791,-2519.94386248,0.000275,5]
[343718926,1732913443922,-2130.93462461,0.000275,5]
[343718927,1732913443940,-153.0,0.000267,2]
[343718928,1732913443952,-9001.76021175,0.000275,5]
[343718929,1732913443963,-915.6,0.000275,5]
[343718930,1732913443974,-103232.9849005,0.000275,5]
[343718933,1732913446218,369.86860558,0.00027767,120]
[343718934,1732913446245,130.13139442,0.00027767,120]
[343718935,1732913446660,-25186.75258,0.000275,5]
[343718936,1732913446955,177.89860558,0.00027767,120]
[343718949,1732913747114,167.583046,0.00013973,2]
[343718950,1732914036531,1449.1981005,0.00015,2]
[343718956,1732914425115,-312.931913,0.00022,2]
[343718957,1732914425137,-198.0,0.00022,2]
[343718958,1732914425159,-354.433353,0.00024482,2]
[343718959,1732914425179,-172.248201,0.00024738,2]
[343718960,1732914425200,-444.4680392,0.00024856,2]
[343718963,1732914576526,167.427349,0.00013973,2]
[343718966,1732914632005,-168.560225,0.00024461,2]
[343718967,1732914632015,-464.56661586,0.00024676,2]
[343718968,1732914632026,-188.12209374,0.00024676,2]
[343718969,1732914632035,-300.0,0.00025036,2]
[343718970,1732914632045,-5000.0,0.00025037,2]
[343718971,1732914632055,-300.0,0.00025037,2]
[343718972,1732914632064,-147.79208574,0.00025038,2]
[343718973,1732914632099,-2048.6165067,0.00025038,2]
[343719162,1732914643035,-4292.24813348,0.00025038,2]
[343719163,1732914643046,-4770.88844713,0.00025038,2]
[343719164,1732914643150,-13640.45482695,0.00025038,2]
[343719165,1732914643159,-1853.10905213,0.000253,2]
[343719166,1732914643169,-300.0,0.000254,2]
[343719167,1732914643179,-152.0,0.00025594,2]
[343719168,1732914643189,-153.0,0.00025941,2]
[343719169,1732914643199,-153.0,0.00025941,2]
[343719170,1732914643209,-1853.10905211,0.00026016,2]
[343719171,1732914643218,-177.415,0.00026184,12]
[343719172,1732914643228,-167.427349,0.00026274,2]
[343719173,1732914643237,-300.0,0.000264,2]
[343719174,1732914643246,-153.0,0.00026541,2]
[343719175,1732914643255,-935.91417948,0.00026666,2]
[343719176,1732914643265,-150.0,0.00026666,2]
[343719177,1732914643280,-531.0,0.00026666,2]
[343719178,1732914643290,-2377.0,0.00026666,2]
[343719179,1732914643300,-2178.0,0.00026666,2]
[343719180,1732914643310,-563.69332409,0.00026666,2]
[343719181,1732914643322,-1853.10905211,0.00026733,2]
[343719182,1732914643331,-168.4,0.00026781,5]
[343719183,1732914643341,-420.0,0.00027122,2]
[343719184,1732914643351,-168.4,0.00027143,5]
[343719185,1732914643362,-970.86269831,0.00027162,2]
[343719186,1732914643371,-212.9448838,0.00027205,2]
[343719187,1732914643385,-212.9448838,0.00027205,2]
[343719188,1732914643395,-212.2337042,0.00027205,2]
[343719189,1732914643404,-300.0,0.000274,2]
[343719190,1732914643413,-1248.1239339,0.000274,2]
[343719191,1732914643423,-4788.31950201,0.000274,2]
[343719192,1732914643431,-184.7,0.000274,7]
[343719193,1732914643442,-277.05,0.000274,7]
[343719194,1732914643451,-1853.10905211,0.00027449,2]
[343719195,1732914643461,-152.35,0.0002749,10]
[343719196,1732914643470,-193.99,0.0002749,10]
[343719197,1732914643479,-161.65,0.0002749,10]
[343719198,1732914643489,-808.3,0.0002749,10]
[343719199,1732914643498,-500.0,0.00027499,2]
[343719200,1732914643507,-500.0,0.00027499,2]
[343719201,1732914643517,-500.0,0.00027499,2]
[343719202,1732914643527,-512.28871379,0.00027499,2]
[343719203,1732914643536,-500.0,0.00027499,2]
[343719204,1732914643546,-300.02,0.00027499,2]
[343719205,1732914643556,-2279.45533276,0.00027499,2]
[343719206,1732914643566,-355.57581209,0.000275,2]
[343719207,1732914643575,-8392.88309314,0.000275,2]
[343719208,1732914643585,-1000.0,0.000275,2]
[343719211,1732914643595,-1000.0,0.000275,8]
[343719212,1732914643605,-1000.0,0.000275,15]
[343719214,1732914643615,-1000.0,0.000275,22]
[343719215,1732914643624,-72585.74173767,0.000275,5]
[343719216,1732914643638,-2610.90709977,0.000275,5]
[343719227,1732915326357,167.271652,0.00013973,2]
[343719230,1732915712259,3220.82464538,0.0002,2]
[343719231,1732915712924,268.3512189,0.00014114,2]
[343719232,1732915724824,436.68398635,0.00015,2]
[343719233,1732915725672,562.91977289,0.000149,2]
[343719234,1732915726660,4269.78653824,0.000109,2]
[343719235,1732915726692,17241.93444443,0.000109,2]
[343719241,1732915747186,-7313.10505307,0.00020377,2]
[343719242,1732915747209,-1504.25738748,0.0002201,16]
[343719243,1732915747231,-168.299725,0.00024003,2]
[343719244,1732915747254,-300.0,0.00024074,2]
[343719245,1732915747277,-300.0,0.00024074,2]
[343719246,1732915747298,-35919.0,0.00024074,2]
[343719247,1732915747320,-500.0,0.00024078,2]
[343719248,1732915747342,-500.0,0.00024078,2]
[343719249,1732915747365,-500.0,0.00024078,2]
[343719250,1732915747388,-500.0,0.00024078,2]
[343719251,1732915747409,-500.0,0.00024078,2]
[343719252,1732915747433,-557.79683245,0.00024078,2]
[343719253,1732915747458,-500.0,0.00024078,2]
[343719254,1732915747482,-256.08689029,0.00024078,2]
[343719255,1732915747505,-23340.37975412,0.00024079,2]
[343719256,1732915767150,-1518.27698667,0.00024079,2]
[343719345,1732915838060,-369.56087715,0.00023838,5]
[343719346,1732915838070,-41.34325921,0.00024079,2]
[343719347,1732915838079,-302.66710251,0.00025,2]
[343719348,1732915838091,-302.63687509,0.00025,2]
[343719349,1732915838100,-177.415,0.00025036,8]
[343719350,1732915838110,-2337.4345547,0.00025183,2]
[343719351,1732915838121,-203.9481754,0.00025191,2]
[343719352,1732915838130,-177.216676,0.00025234,2]
[343719353,1732915838141,-302.66710251,0.0002525,2]
[343719354,1732915838150,-302.63687509,0.0002525,2]
[343719356,1732915838160,-302.66710251,0.000255,2]
[343719357,1732915838169,-302.63687509,0.000255,2]
[343719359,1732915838179,-146.01083063,0.000255,2]
[343719361,1732915838198,-249.97777996,0.000255,2]
[343719363,1732915838207,-302.66710251,0.0002575,2]
[343719365,1732915838216,-195.53205702,0.0002575,2]
[343719366,1732915838226,-1000.5,0.00026,31]
[343719368,1732915838235,-302.66710251,0.00026,2]
[343719369,1732915838245,-454.00065376,0.0002625,4]
[343719371,1732915838255,-970.209712,0.0002629,2]
[343719373,1732915838264,-152.9,0.00026419,5]
[343719375,1732915838273,-300.0,0.00026489,2]
[343719376,1732915838283,-300.0,0.00026489,2]
[343719378,1732915838292,-7458.94652043,0.0002649,2]
[343719379,1732915838301,-454.00065376,0.000265,4]
[343719381,1732915838314,-454.00065376,0.0002675,4]
[343719383,1732915838324,-152.9,0.00026781,5]
[343719385,1732915838335,-454.40880535,0.00027,4]
[343719386,1732915838345,-1073.54367259,0.00027,60]
[343719388,1732915838355,-152.9,0.00027143,5]
[343719390,1732915838365,-475.81876455,0.0002734,2]
[343719391,1732915838374,-211.22787322,0.0002734,2]
[343719393,1732915838383,-500.0,0.0002734,2]
[343719395,1732915838393,-203.46386391,0.0002734,2]
[343719396,1732915838403,-300.0,0.000274,2]
[343719398,1732915838412,-1123.31154051,0.000274,2]
[343719400,1732915838421,-915.16762317,0.00027473,2]
[343719401,1732915838430,-501.15609388,0.00027473,5]
[343719403,1732915838440,-1899.54611063,0.00027499,2]
[343719405,1732915838449,-500.0,0.00027499,2]
[343719406,1732915838460,-181.5512111,0.00027499,2]
[343719408,1732915838469,-177.78790605,0.000275,2]
[343719410,1732915838478,-4196.44154657,0.000275,2]
[343719411,1732915838487,-46436.90421273,0.000275,5]
[343719501,1732915840040,-9136.10834588,0.00026345,2]
[343719502,1732915840049,-9136.10834588,0.00026808,2]
[343719503,1732915840059,-9136.10834588,0.00026856,2]
[343719504,1732915840068,-9136.10834591,0.00027157,2]
[343719505,1732915840077,-35697.52718914,0.000275,5]
[343719519,1732915843051,-452.77538759,0.00027473,5]
[343719520,1732915843061,-374.01344576,0.00027473,2]
[343719521,1732915843071,-564.41116665,0.000275,5]
[343719522,1732915843111,-681607.81397954,0.000275,5]
[343719545,1732916533624,169.06738,0.00013973,2]
[343719547,1732916565266,-322.10139442,0.00027767,120]
[343719548,1732916565290,-500.0,0.00027767,120]
[343719549,1732916565313,-536.89860558,0.00027767,120]
[343719550,1732916578279,-0.61139442,0.00027767,120]
[343719551,1732916578555,-151.0,0.0003,120]
[343719552,1732916578578,-151.0,0.0003,120]
[343719553,1732916594085,-293.76504,0.00030137,120]
[343719556,1732916835274,-305.58572694,0.000218,2]
[343719557,1732916835294,-257.58826757,0.000218,2]
[343719558,1732916835315,-195.20413943,0.000219,2]
[343719559,1732916835335,-254.0,0.00022,2]
[343719560,1732916835357,-254.0,0.00022192,2]
[343719561,1732916835377,-2484.276629,0.00022525,2]
[343719562,1732916835400,-300.0,0.00022792,2]
[343719563,1732916835421,-1718.0,0.00022792,2]
[343719564,1732916835441,-300.0,0.00022793,2]
[343719565,1732916835461,-7728.0435744,0.00022794,2]
[343719566,1732916835481,-4139.4310924,0.00022848,2]
[343719567,1732916835501,-254.0,0.00023014,2]
[343719568,1732916835521,-200.0,0.00023562,2]
[343719569,1732916835541,-5801.9593743,0.00023604,2]
[343719570,1732916835735,-261.0,0.00024164,2]
[343719571,1732916835761,-173.983723,0.00024376,2]
[343719572,1732916835781,-169.632951,0.00024399,2]
[343719573,1732916835803,-420.0,0.00024747,2]
[343719574,1732916835826,-2013.96523869,0.00024839,2]
[343719575,1732916835847,-610.11174878,0.00024938,2]
[343719576,1732916835868,-500.0,0.00024939,2]
[343719577,1732916835891,-500.0,0.00024939,2]
[343719578,1732916835915,-500.0,0.00024939,2]
[343719579,1732916835938,-500.0,0.00024939,2]
[343719580,1732916835963,-500.0,0.00024939,2]
[343719581,1732916835987,-500.0,0.00024939,2]
[343719582,1732916836007,-500.0,0.00024939,2]
[343719583,1732916836032,-500.0,0.00024939,2]
[343719584,1732916836054,-500.0,0.00024939,2]
[343719585,1732916836076,-500.0,0.00024939,2]
[343719586,1732916836098,-500.0,0.00024939,2]
[343719587,1732916836119,-500.0,0.00024939,2]
[343719588,1732916836142,-500.0,0.00024939,2]
[343719589,1732916836170,-500.0,0.00024939,2]
[343719590,1732916836192,-500.0,0.00024939,2]
[343719591,1732916836215,-500.0,0.00024939,2]
[343719592,1732916836237,-500.0,0.00024939,2]
[343719593,1732916836260,-500.0,0.00024939,2]
[343719594,1732916836281,-500.0,0.00024939,2]
[343719595,1732916836304,-373.77626625,0.00024939,2]
[343719596,1732916836326,-500.0,0.00024939,2]
[343719597,1732916836348,-500.0,0.00024939,2]
[343719598,1732916836370,-500.0,0.00024939,2]
[343719599,1732916836392,-433.4622675,0.00024939,2]
[343719600,1732916848132,-66.5377325,0.00024939,2]
[343719601,1732916848155,-500.0,0.00024939,2]
[343719602,1732916848177,-270.39888145,0.00024939,2]
[343719603,1732916848200,-500.0,0.00024939,2]
[343719604,1732916848222,-500.0,0.00024939,2]
[343719605,1732916848244,-500.0,0.00024939,2]
[343719606,1732916848266,-321.02170708,0.00024939,2]
[343719607,1732916848287,-500.0,0.00024939,2]
[343719608,1732916848309,-500.0,0.00024939,2]
[343719609,1732916848330,-3898.84617262,0.0002494,2]
[343719619,1732916937096,-771.46992,0.00030137,120]
[343719620,1732916951111,-264.71,0.00023471,2]
[343719621,1732916951133,-656.89426903,0.00023603,2]
[343719622,1732916954098,-932.47,0.00023603,2]
[343719623,1732916966123,-3410.63573097,0.00023603,2]
[343719624,1732916966143,-342.33026623,0.00024688,2]
[343719647,1732917035259,-119.08454677,0.00024688,2]
[343719649,1732917035269,-263.73926326,0.00024937,2]
[343719652,1732917035280,-36.26073674,0.00024937,2]
[343719654,1732917035290,-1864.72402936,0.00024937,2]
[343719656,1732917035304,-9085.27597064,0.00024937,2]
[343719658,1732917035313,-5000.0,0.00024939,2]
[343719660,1732917035322,-202.33574523,0.00024939,2]
[343719662,1732917035331,-500.0,0.00024939,2]
[343719664,1732917035341,-500.0,0.00024939,2]
[343719666,1732917035350,-319.30847403,0.00024939,2]
[343719668,1732917035359,-196.71098683,0.00024939,2]
[343719669,1732917035369,-1444.91347479,0.0002494,2]
[343719672,1732917035380,-3555.08652521,0.0002494,2]
[343719674,1732917035391,-406.74116585,0.0002494,2]
[343719676,1732917035400,-24900.0,0.0002494,2]
[343719678,1732917035410,-1762.21958381,0.000253,2]
[343719681,1732917035419,-169.196596,0.000254,2]
[343719684,1732917035428,-254.0,0.00025775,2]
[343719687,1732917035437,-1762.21958379,0.00026017,2]
[343719690,1732917035446,-169.06738,0.00026274,2]
[343719693,1732917035455,-1762.21958379,0.00026733,2]
[343719696,1732917035465,-275.548861,0.00026849,2]
[343719699,1732917035474,-153.0,0.00026849,2]
[343719701,1732917035483,-153.0,0.00026849,2]
[343719703,1732917035492,-153.0,0.00026849,2]
[343719705,1732917035501,-153.0,0.00026849,2]
[343719707,1732917035510,-153.0,0.00026849,2]
[343719709,1732917035520,-153.0,0.00026849,2]
[343719711,1732917035529,-153.0,0.00026849,2]
[343719713,1732917035538,-153.0,0.00026849,2]
[343719715,1732917035548,-153.0,0.00026849,2]
[343719717,1732917035559,-153.0,0.00026849,2]
[343719719,1732917035568,-153.0,0.00026849,2]
[343719720,1732917035578,-153.0,0.00026849,2]
[343719722,1732917035587,-153.0,0.00026849,2]
[343719724,1732917035596,-153.0,0.00026849,2]
[343719727,1732917035607,-153.0,0.00026849,2]
[343719728,1732917035617,-153.0,0.00026849,2]
[343719730,1732917035626,-153.0,0.00026849,2]
[343719732,1732917035635,-200.0,0.00027049,2]
[343719733,1732917035645,-5000.0,0.00027138,2]
[343719735,1732917035654,-153.0,0.00027205,2]
[343719736,1732917035664,-153.0,0.00027205,2]
[343719737,1732917035673,-212.9448838,0.00027205,2]
[343719738,1732917035684,-212.9448838,0.00027205,2]
[343719739,1732917035693,-153.0,0.00027205,2]
[343719740,1732917035703,-212.9448838,0.00027205,2]
[343719741,1732917035712,-212.9448838,0.00027205,2]
[343719742,1732917035721,-153.0,0.00027205,2]
[343719743,1732917035730,-305.0478812,0.00027205,2]
[343719744,1732917035740,-258.2031212,0.00027205,2]
[343719745,1732917035749,-212.9448838,0.00027205,2]
[343719746,1732917035758,-306.1887661,0.00027205,2]
[343719747,1732917035767,-153.0,0.00027205,2]
[343719748,1732917035776,-212.9448838,0.00027205,2]
[343719749,1732917035785,-212.9448838,0.00027205,2]
[343719750,1732917035794,-212.9448838,0.00027205,2]
[343719751,1732917035806,-212.4807745,0.00027205,2]
[343719752,1732917035814,-1000.0,0.00027232,2]
[343719753,1732917035823,-1000.0,0.00027238,2]
[343719754,1732917035833,-7151.22744986,0.00027328,2]
[343719755,1732917035842,-254.0,0.00027386,2]
[343719756,1732917035853,-151.0,0.00027397,6]
[343719757,1732917035862,-500.0,0.00027397,2]
[343719758,1732917035870,-1183.62498008,0.000274,2]
[343719759,1732917035880,-3534.69069655,0.000274,2]
[343719760,1732917035888,-420.0,0.00027431,2]
[343719761,1732917036018,-1762.21958379,0.0002745,2]
[343719762,1732917036027,-500.4917188,0.00027473,5]
[343719763,1732917036037,-327.12121404,0.00027473,2]
[343719764,1732917036046,-500.0,0.00027473,5]
[343719765,1732917036059,-500.0,0.00027473,5]
[343719766,1732917036068,-500.0,0.00027473,5]
[343719767,1732917036077,-418.33271547,0.00027473,5]
[343719768,1732917036088,-500.0,0.00027473,5]
[343719769,1732917036098,-278.82467918,0.00027473,2]
[343719770,1732917036107,-200.22099625,0.00027473,2]
[343719771,1732917036117,-500.0,0.00027473,5]
[343719772,1732917036126,-500.0,0.00027473,5]
[343719773,1732917036136,-500.0,0.00027473,5]
[343719774,1732917036145,-500.0,0.00027473,5]
[343719775,1732917036154,-168.622,0.00027473,16]
[343719776,1732917036163,-643.7,0.00027489,3]
[343719777,1732917036172,-275.9,0.00027489,10]
[343719778,1732917036182,-5000.0,0.00027496,2]
[343719779,1732917036191,-5000.0,0.00027498,2]
[343719780,1732917036200,-385.2004079,0.00027498,2]
[343719781,1732917036210,-192.97113455,0.00027498,2]
[343719782,1732917036218,-203.53993478,0.00027498,2]
[343719783,1732917036227,-1582.95509219,0.00027499,2]
[343719784,1732917036237,-5000.0,0.00027499,2]
[343719785,1732917036246,-3382.74159291,0.00027499,2]
[343719786,1732917036255,-164.0922313,0.00027499,10]
[343719787,1732917036264,-393996.71083132,0.000275,5]
[343719788,1732917036277,-2854.48082894,0.000275,5]
[343719789,1732917036288,-6050.1165477,0.000275,5]
[343719790,1732917036301,-5000.0,0.000275,5]
[343719791,1732917036312,-599.99104687,0.000275,5]
[343719792,1732917036323,-286.6862773,0.000275,5]
[343719793,1732917036334,-305.9826076,0.000275,5]
[343719794,1732917036345,-2645.27878939,0.000275,5]
[343719795,1732917036356,-15571.19634229,0.000275,5]
[343719796,1732917036371,-38380.32134813,0.000275,5]
[343719797,1732917036382,-4440.74151632,0.000275,5]
[343719798,1732917036409,-2860.8125723,0.000275,5]
[343719807,1732917038879,-4405.33566658,0.000275,5]
[343719808,1732917038891,-399.00140066,0.000275,5]
[343719815,1732917040263,-229.92,0.0002749,10]
[343719816,1732917040279,-10518.47376375,0.000275,5]
[343719832,1732917043231,-153.0,0.00026849,2]
[343719833,1732917043241,-140.53393974,0.000275,5]
[343719834,1732917043295,-914.31469628,0.000275,5]
[343719835,1732917043308,-876.82788125,0.000275,5]
[343719836,1732917043319,-693.56240812,0.000275,5]
[343719864,1732917147378,169.485005,0.00013973,2]
[343719869,1732917453127,384.56016,0.00030137,120]
[343719870,1732917453153,192.75,0.00030137,120]
[343719871,1732917812852,167.857162,0.00013973,2]
[343719875,1732918034389,79847.788,0.0002,15]
[343719876,1732918034420,25000.0,0.0002,15]
[343719877,1732918034452,2251.65600857,0.0002,15]
[343719878,1732918034483,20000.0,0.0002,15]
[343719879,1732918034649,138114.3343607,0.0002,15]
[343719880,1732918034672,250000.0,0.0002,15]
[343719881,1732918045137,-2089.55380495,0.0002,15]